fUST/lending_fUST_20260430
["ID","MTS","AMOUNT","RATE_DAILY","PERIOD"]
[421348471,1777486241000,-500.0,0.000114,2]
[421348479,1777486241000,-646.0,0.00011638,2]
[421348481,1777486241000,-442.0,0.00011638,2]
[421348473,1777486241000,-151.0,0.000116,2]
[421348475,1777486241000,-2212.0,0.00011638,2]
[421348488,1777486241000,-151.0,0.000118,2]
[421348491,1777486241000,-500.0,0.00011948,2]
[421348490,1777486241000,-151.0,0.000119,2]
[421348485,1777486241000,-500.0,0.00011674,2]
[421348483,1777486241000,-185.0,0.00011638,2]
[421348477,1777486241000,-1410.0,0.00011638,2]
[421348495,1777486241000,-1562.18908082,0.00012,2]
[421348496,1777486241000,-151.0,0.000121,2]
[421348510,1777486241000,-300.6409374,0.00012888,2]
[421348508,1777486241000,-151.0,0.000128,2]
[421348492,1777486241000,-330.0,0.00011978,2]
[421348571,1777486241000,-2118.25,0.00013698,2]
[421348539,1777486241000,-333.75263436,0.00013673,2]
[421348573,1777486241000,-2118.25,0.00013698,2]
[421348601,1777486241000,-500.0,0.00013698,2]
[421348604,1777486241000,-500.0,0.00013698,2]
[421348603,1777486241000,-500.0,0.00013698,2]
[421348602,1777486241000,-500.0,0.00013698,2]
[421348613,1777486241000,-500.0,0.00013698,2]
[421348618,1777486241000,-854.997738,0.00013699,2]
[421348617,1777486241000,-1000.0,0.00013699,2]
[421348616,1777486241000,-500.0,0.00013699,2]
[421348612,1777486241000,-500.0,0.00013698,2]
[421348621,1777486241000,-151.0,0.000137,2]
[421348615,1777486241000,-500.0,0.00013699,2]
[421348620,1777486241000,-1000.0,0.00013699,2]
[421348606,1777486241000,-500.0,0.00013698,2]
[421348619,1777486241000,-2000.0,0.00013699,7]
[421348622,1777486241000,-1000.0,0.00013706,2]
[421348623,1777486241000,-244.0,0.00013706,2]
[421348629,1777486241000,-501.57385257,0.00014221,2]
[421348630,1777486241000,-1087.98395541,0.00014221,2]
[421348631,1777486241000,-195.93,0.00014227,2]
[421348633,1777486241000,-1361.756,0.00014638,2]
[421348632,1777486241000,-151.0,0.000146,2]
[421348625,1777486241000,-507.42794782,0.00013969,2]
[421348627,1777486241000,-196.0,0.00013972,2]
[421348628,1777486241000,-502.2547934,0.00014221,2]
[421348626,1777486241000,-2027.6820795,0.00013969,2]
[421348565,1777486241000,-2118.25,0.00013698,2]
[421348614,1777486241000,-504.69287217,0.00013698,2]
[421348607,1777486241000,-500.0,0.00013698,2]
[421348624,1777486241000,-3517.14154601,0.00013864,2]
[421348599,1777486241000,-500.0,0.00013698,2]
[421348605,1777486241000,-195.52272931,0.00013698,2]
[421348577,1777486241000,-2118.25,0.00013698,2]
[421348586,1777486241000,-2118.25,0.00013698,2]
[421348579,1777486241000,-2118.25,0.00013698,2]
[421348567,1777486241000,-2118.25,0.00013698,2]
[421348584,1777486241000,-2118.25,0.00013698,2]
[421348569,1777486241000,-2118.25,0.00013698,2]
[421348585,1777486241000,-2118.25,0.00013698,2]
[421348582,1777486241000,-2118.25,0.00013698,2]
[421348587,1777486241000,-2118.25,0.00013698,2]
[421348588,1777486241000,-2118.25,0.00013698,2]
[421348589,1777486241000,-2118.33767609,0.00013698,2]
[421348598,1777486241000,-500.0,0.00013698,2]
[421348580,1777486241000,-2118.25,0.00013698,2]
[421348594,1777486241000,-500.0,0.00013698,2]
[421348611,1777486241000,-500.0,0.00013698,2]
[421348595,1777486241000,-500.0,0.00013698,2]
[421348610,1777486241000,-500.0,0.00013698,2]
[421348609,1777486241000,-500.0,0.00013698,2]
[421348608,1777486241000,-500.0,0.00013698,2]
[421348600,1777486241000,-500.0,0.00013698,2]
[421348575,1777486241000,-2118.25,0.00013698,2]
[421348592,1777486241000,-500.0,0.00013698,2]
[421348590,1777486241000,-500.0,0.00013698,2]
[421348597,1777486241000,-500.0,0.00013698,2]
[421348591,1777486241000,-500.0,0.00013698,2]
[421348596,1777486241000,-500.0,0.00013698,2]
[421348593,1777486241000,-500.0,0.00013698,2]
[421348662,1777486242000,-315.157848,0.00015546,2]
[421348650,1777486242000,-500.0,0.00015131,2]
[421348659,1777486242000,-196.920709,0.00015546,2]
[421348658,1777486242000,-907.909004,0.00015546,7]
[421348653,1777486242000,-3733.59458995,0.000153,2]
[421348652,1777486242000,-3733.59458995,0.000152,2]
[421348655,1777486242000,-151.0,0.000155,2]
[421348656,1777486242000,-160.0,0.00015546,7]
[421348663,1777486242000,-470.315696,0.00015546,2]
[421348670,1777486242000,-1000.0,0.00015679,2]
[421348672,1777486242000,-162.380719,0.00015768,2]
[421348654,1777486242000,-3733.59458995,0.000155,2]
[421348665,1777486242000,-535.777103,0.0001556,7]
[421348674,1777486242000,-151.0,0.00015768,2]
[421348673,1777486242000,-445.202766,0.00015768,2]
[421348664,1777486242000,-160.0,0.0001556,7]
[421348671,1777486242000,-1000.0,0.00015679,2]
[421348668,1777486242000,-219.52831394,0.000156,2]
[421348669,1777486242000,-1000.0,0.00015679,2]
[421348666,1777486242000,-911.554207,0.0001556,7]
[421348642,1777486242000,-393.04481423,0.000149,2]
[421348661,1777486242000,-160.0,0.00015546,2]
[421348667,1777486242000,-3733.59458995,0.000156,2]
[421348635,1777486242000,-646.0,0.00014638,2]
[421348636,1777486242000,-442.0,0.00014638,2]
[421348634,1777486242000,-1945.437,0.00014638,2]
[421348639,1777486242000,-459.86778649,0.000149,2]
[421348637,1777486242000,-185.0,0.00014638,2]
[421348640,1777486242000,-459.86778648,0.000149,2]
[421348641,1777486242000,-459.86778648,0.000149,2]
[421348657,1777486242000,-533.954502,0.00015546,7]
[421348638,1777486242000,-340.4316497,0.00014888,2]
[421348643,1777486242000,-393.04481423,0.000149,2]
[421348644,1777486242000,-393.04481423,0.000149,2]
[421348648,1777486242000,-492.0,0.00015077,2]
[421348646,1777486242000,-360.999274,0.00015068,2]
[421348647,1777486242000,-1000.0,0.00015077,2]
[421348649,1777486242000,-500.0,0.00015131,2]
[421348651,1777486242000,-500.0,0.00015131,2]
[421348660,1777486242000,-219.468054,0.00015546,7]
[421348645,1777486242000,-3733.59458995,0.00015,2]
[421348681,1777486242000,-151.0,0.00015768,2]
[421348694,1777486242000,-151.0,0.00015768,2]
[421348684,1777486242000,-151.0,0.00015768,2]
[421348702,1777486242000,-557.5788265,0.00015823,2]
[421348703,1777486242000,-2030.296672,0.00015823,2]
[421348704,1777486242000,-455.8715388,0.00015831,2]
[421348706,1777486242000,-30000.0,0.00015863,7]
[421348682,1777486242000,-151.0,0.00015768,2]
[421348705,1777486242000,-30000.0,0.00015863,2]
[421348708,1777486242000,-578.20924308,0.00015878,2]
[421348707,1777486242000,-5427.69564732,0.00015863,7]
[421348700,1777486242000,-3733.59458995,0.000158,2]
[421348709,1777486242000,-2105.41764886,0.00015878,2]
[421348711,1777486242000,-219.52831394,0.000159,2]
[421348713,1777486242000,-2183.31810187,0.00015933,2]
[421348712,1777486242000,-599.60298507,0.00015933,2]
[421348714,1777486242000,-621.78829552,0.00015988,2]
[421348717,1777486242000,-644.79446246,0.00016043,2]
[421348718,1777486242000,-355.28316443,0.00016043,2]
[421348716,1777486242000,-500.01,0.00016,2]
[421348715,1777486242000,-2264.10087164,0.00015988,2]
[421348710,1777486242000,-3733.59458995,0.000159,2]
[421348695,1777486242000,-151.0,0.00015768,2]
[421348701,1777486242000,-219.52831394,0.000158,2]
[421348693,1777486242000,-151.0,0.00015768,2]
[421348676,1777486242000,-151.0,0.00015768,2]
[421348677,1777486242000,-537.6845,0.00015768,2]
[421348697,1777486242000,-153.3378092,0.00015768,2]
[421348680,1777486242000,-1957.856,0.00015768,2]
[421348675,1777486242000,-537.6845,0.00015768,2]
[421348678,1777486242000,-151.0,0.00015768,2]
[421348679,1777486242000,-151.0,0.00015768,2]
[421348683,1777486242000,-151.0,0.00015768,2]
[421348686,1777486242000,-151.0,0.00015768,2]
[421348685,1777486242000,-151.0,0.00015768,2]
[421348698,1777486242000,-156.89658255,0.00015768,2]
[421348690,1777486242000,-151.0,0.00015768,2]
[421348688,1777486242000,-151.0,0.00015768,2]
[421348689,1777486242000,-151.0,0.00015768,2]
[421348691,1777486242000,-151.0,0.00015768,2]
[421348692,1777486242000,-151.0,0.00015768,2]
[421348699,1777486242000,-2150.738,0.00015768,2]
[421348696,1777486242000,-151.0,0.00015768,2]
[421348687,1777486242000,-151.0,0.00015768,2]
[421348767,1777486244000,-600.0,9.776e-05,2]
[421348768,1777486244000,-278.91953977,0.00010753,2]
[421348769,1777486244000,-441.08046023,0.00010753,2]
[421348770,1777486244000,-864.0,0.00011829,2]
[421348771,1777486244000,-1621.28414135,0.00016043,2]
[421348856,1777486246000,-403.21752215,0.00016098,2]
[421348841,1777486246000,-244.0,0.00014313,2]
[421348843,1777486246000,-1000.0,0.00015744,2]
[421348839,1777486246000,-1000.0,0.00014313,2]
[421348835,1777486246000,-1720.33563373,0.00012881,10]
[421348845,1777486246000,-492.0,0.00015744,2]
[421348837,1777486246000,-1000.0,0.00013011,2]
[421348854,1777486246000,-151.0,0.0001606,2]
[421348847,1777486246000,-371.30529811,0.00016043,2]
[421348862,1777486246000,-3597.27907405,0.000161,2]
[421348859,1777486246000,-265.43433542,0.00016098,2]
[421348851,1777486246000,-5000.0,0.0001606,2]
[421348849,1777486246000,-3517.14154601,0.00016052,2]
[421348884,1777486246000,-3733.59458995,0.000162,2]
[421348853,1777486246000,-151.0,0.0001606,2]
[421348880,1777486246000,-693.3919763,0.00016153,2]
[421348882,1777486246000,-2442.14094219,0.00016153,2]
[421348876,1777486246000,-136.3155159,0.000161,2]
[421348878,1777486246000,-219.52831394,0.000161,2]
[421348860,1777486246000,-2434.74389024,0.00016098,2]
[421348972,1777486247000,-1257.38643114,0.00016775,2]
[421348970,1777486247000,-1500.0,0.00016775,2]
[421348967,1777486247000,-170.98099,0.00016438,2]
[421348964,1777486247000,-170.98099,0.00016438,2]
[421348962,1777486247000,-170.98099,0.00016438,2]
[421348960,1777486247000,-170.98099,0.00016438,2]
[421348945,1777486247000,-151.0,0.00016438,2]
[421348943,1777486247000,-151.0,0.00016438,2]
[421348956,1777486247000,-170.98099,0.00016438,2]
[421348939,1777486247000,-500.0,0.00016438,2]
[421348974,1777486247000,-151.0,0.00016858,2]
[421348941,1777486247000,-500.0,0.00016438,2]
[421348958,1777486247000,-170.98099,0.00016438,2]
[421348976,1777486247000,-534.90871567,0.00016864,2]
[421348984,1777486247000,-152.0,0.00016909,7]
[421348978,1777486247000,-2312.83697232,0.00016864,2]
[421348980,1777486247000,-380.222362,0.00016888,2]
[421348982,1777486247000,-152.0,0.00016909,7]
[421348952,1777486247000,-170.98099,0.00016438,2]
[421348986,1777486247000,-152.0,0.00016926,7]
[421348998,1777486247000,-1000.0,0.00016986,2]
[421348988,1777486247000,-152.0,0.00016926,7]
[421349000,1777486247000,-539.91393504,0.00016986,2]
[421349005,1777486247000,-157.0,0.00017342,3]
[421349004,1777486247000,-151.0,0.000173,2]
[421348994,1777486247000,-1000.0,0.00016986,2]
[421349008,1777486247000,-2398.4119403,0.00017412,2]
[421348992,1777486247000,-1000.0,0.00016986,2]
[421348996,1777486247000,-1000.0,0.00016986,2]
[421348968,1777486247000,-177.97189079,0.00016438,2]
[421348954,1777486247000,-170.98099,0.00016438,2]
[421348935,1777486247000,-500.0,0.00016438,2]
[421348948,1777486247000,-151.0,0.00016438,2]
[421348886,1777486247000,-219.52831394,0.000162,2]
[421348888,1777486247000,-772.00156791,0.00016208,2]
[421348904,1777486247000,-728.119775,0.00016323,7]
[421348890,1777486247000,-1500.0,0.00016227,2]
[421348898,1777486247000,-325.4528443,0.00016244,2]
[421348894,1777486247000,-1500.0,0.00016227,2]
[421348902,1777486247000,-2230.315306,0.00016316,2]
[421348900,1777486247000,-557.5788265,0.00016316,2]
[421348892,1777486247000,-268.31712248,0.00016227,2]
[421348896,1777486247000,-325.5277396,0.00016244,2]
[421348907,1777486247000,-730.605141,0.00016338,7]
[421348906,1777486247000,-429.760702,0.00016323,2]
[421348909,1777486247000,-3733.59458995,0.000164,2]
[421348913,1777486247000,-151.0,0.00016438,2]
[421348915,1777486247000,-151.0,0.00016438,2]
[421348922,1777486247000,-174.652534,0.00016438,2]
[421348911,1777486247000,-151.0,0.000164,2]
[421348918,1777486247000,-151.0,0.00016438,2]
[421348920,1777486247000,-151.0,0.00016438,2]
[421348917,1777486247000,-151.0,0.00016438,2]
[421348928,1777486247000,-151.0,0.00016438,2]
[421348926,1777486247000,-151.0,0.00016438,2]
[421348924,1777486247000,-151.0,0.00016438,2]
[421348930,1777486247000,-500.0,0.00016438,2]
[421348932,1777486247000,-500.0,0.00016438,2]
[421348933,1777486247000,-500.0,0.00016438,2]
[421348990,1777486247000,-1000.0,0.00016986,2]
[421348937,1777486247000,-500.0,0.00016438,2]
[421348947,1777486247000,-151.0,0.00016438,2]
[421348950,1777486247000,-270.71571676,0.00016438,2]
[421349010,1777486247000,-1492.8179815,0.00017534,2]
[421349002,1777486247000,-1000.0,0.00016986,2]
[421349025,1777486247000,-179.88,0.00017802,2]
[421349069,1777486247000,-822.0,0.000184,2]
[421349073,1777486247000,-151.4090701,0.00018486,2]
[421349083,1777486247000,-151.0,0.00018611,2]
[421349089,1777486247000,-381.14530069,0.0001863,2]
[421349087,1777486247000,-2500.0,0.0001863,2]
[421349085,1777486247000,-2500.0,0.0001863,2]
[421349091,1777486247000,-2500.0,0.0001863,2]
[421349102,1777486247000,-1939.16715117,0.00018887,2]
[421349093,1777486247000,-1118.03896762,0.000187,2]
[421349023,1777486247000,-325.548554,0.0001768,2]
[421349096,1777486247000,-822.0,0.0001872,2]
[421349108,1777486247000,-4475.32093455,0.000189,2]
[421349106,1777486247000,-1939.16715117,0.00018889,2]
[421349100,1777486247000,-160.0,0.00018844,3]
[421349068,1777486247000,-1118.03896762,0.000184,2]
[421349095,1777486247000,-822.0,0.0001872,2]
[421349110,1777486247000,-350.0,0.00018904,2]
[421349112,1777486247000,-187.22,0.00018908,2]
[421349114,1777486247000,-1939.16715117,0.00018935,2]
[421349116,1777486247000,-1939.16715117,0.00018954,2]
[421349118,1777486247000,-1939.16715117,0.00018968,2]
[421349129,1777486247000,-806.0,0.00019,2]
[421349133,1777486247000,-3271.0,0.00019,2]
[421349122,1777486247000,-176.0,0.00018986,3]
[421349131,1777486247000,-183.0,0.00019,2]
[421349127,1777486247000,-435.0,0.00019,2]
[421349135,1777486247000,-151.0,0.00019,2]
[421349119,1777486247000,-1939.16715117,0.00018973,2]
[421349125,1777486247000,-207.0,0.00019,2]
[421349137,1777486247000,-170.98099,0.00019,2]
[421349098,1777486247000,-151.0,0.00018809,2]
[421349071,1777486247000,-165.70373006,0.00018423,21]
[421349104,1777486247000,-420.0130743,0.00018888,2]
[421349066,1777486247000,-250.0,0.00018356,2]
[421349027,1777486247000,-150.0,0.00017808,2]
[421349013,1777486247000,-1500.0,0.00017534,2]
[421349017,1777486247000,-1500.0,0.00017534,2]
[421349081,1777486247000,-2579.17784983,0.00018508,2]
[421349029,1777486247000,-1000.0,0.00017868,5]
[421349015,1777486247000,-1500.0,0.00017534,2]
[421349021,1777486247000,-646.0,0.00017638,2]
[421349019,1777486247000,-1500.0,0.00017534,2]
[421349031,1777486247000,-378.622283,0.00017878,7]
[421349033,1777486247000,-223.475565,0.00017878,2]
[421349036,1777486247000,-2487.15318209,0.0001796,2]
[421349035,1777486247000,-379.914673,0.00017894,7]
[421349038,1777486247000,-1118.03896762,0.00018,2]
[421349040,1777486247000,-2644.5030624,0.00018,2]
[421349011,1777486247000,-1500.0,0.00017534,2]
[421349048,1777486247000,-2000.0,0.00018082,2]
[421349050,1777486247000,-2000.0,0.00018082,2]
[421349079,1777486247000,-195.9491867,0.00018502,2]
[421349077,1777486247000,-1118.03896762,0.000185,2]
[421349064,1777486247000,-3517.14154601,0.0001824,2]
[421349062,1777486247000,-151.0,0.000182,2]
[421349060,1777486247000,-1118.03896762,0.000182,2]
[421349075,1777486247000,-360.999274,0.00018493,2]
[421349042,1777486247000,-669.26639829,0.00018082,2]
[421349044,1777486247000,-2000.0,0.00018082,2]
[421349046,1777486247000,-2000.0,0.00018082,2]
[421349058,1777486247000,-180.23,0.00018166,2]
[421349052,1777486247000,-151.0,0.00018145,2]
[421349056,1777486247000,-151.0,0.00018145,2]
[421349054,1777486247000,-151.0,0.00018145,2]
[421349164,1777486248000,-1939.16715117,0.00019149,2]
[421349166,1777486248000,-1939.16715117,0.00019153,2]
[421349170,1777486248000,-300.0,0.00019178,2]
[421349172,1777486248000,-3000.0,0.00019178,2]
[421349183,1777486248000,-150.0,0.00019178,2]
[421349168,1777486248000,-168.87649341,0.00019178,7]
[421349185,1777486248000,-3000.0,0.00019178,2]
[421349162,1777486248000,-1939.16715117,0.00019136,2]
[421349187,1777486248000,-1939.16715117,0.00019187,2]
[421349175,1777486248000,-2726.13619868,0.00019178,2]
[421349155,1777486248000,-1939.16715117,0.00019051,2]
[421349146,1777486248000,-1939.16715117,0.00019009,2]
[421349161,1777486248000,-1939.16715117,0.00019108,2]
[421349153,1777486248000,-822.0,0.0001904,2]
[421349157,1777486248000,-2674.60743027,0.00019056,2]
[421349151,1777486248000,-819.0,0.0001904,2]
[421349148,1777486248000,-1939.16715117,0.00019015,2]
[421349142,1777486248000,-151.0,0.00019008,5]
[421349144,1777486248000,-318.19984913,0.00019008,5]
[421349139,1777486248000,-170.98099,0.00019,2]
[421349141,1777486248000,-1939.16715117,0.00019006,2]
[421349192,1777486248000,-2107.06904892,0.00019205,5]
[421349159,1777486248000,-151.0,0.000191,2]
[421349196,1777486248000,-5000.0,0.00019272,2]
[421349215,1777486248000,-11128.42039247,0.00019395,2]
[421349189,1777486248000,-1939.16715117,0.00019196,2]
[421349238,1777486248000,-45943.56302921,0.00019404,2]
[421349244,1777486248000,-67429.32921473,0.00019404,2]
[421349246,1777486248000,-1000.0,0.00017318,2]
[421349242,1777486248000,-170.98099,0.00016438,2]
[421349232,1777486248000,-750.0,0.00019402,2]
[421349234,1777486248000,-750.0,0.00019402,2]
[421349236,1777486248000,-429.0,0.00019402,2]
[421349230,1777486248000,-750.0,0.00019402,2]
[421349228,1777486248000,-750.0,0.00019402,2]
[421349222,1777486248000,-750.0,0.00019402,2]
[421349224,1777486248000,-750.0,0.00019402,2]
[421349194,1777486248000,-151.0,0.00019206,5]
[421349217,1777486248000,-750.0,0.00019402,2]
[421349207,1777486248000,-194.6,0.00019331,2]
[421349198,1777486248000,-151.0,0.00019284,2]
[421349205,1777486248000,-10315.37217601,0.00019289,30]
[421349202,1777486248000,-151.0,0.00019284,2]
[421349209,1777486248000,-818.0,0.0001936,2]
[421349200,1777486248000,-151.0,0.00019284,2]
[421349211,1777486248000,-821.0,0.0001936,2]
[421349226,1777486248000,-750.0,0.00019402,2]
[421349220,1777486248000,-750.0,0.00019402,2]
[421349249,1777486248000,-2461.90317999,0.00019404,2]
[421349213,1777486248000,-168.87649341,0.00019365,7]
[421349679,1777487433000,-4467.04225338,9.285e-05,2]
[421349675,1777487433000,-1200.0,9.284e-05,2]
[421349676,1777487433000,-20113.30721954,9.285e-05,2]
[421349677,1777487433000,-68021.58277345,9.285e-05,2]
[421349678,1777487433000,-2648.49523696,9.285e-05,2]
[421349672,1777487433000,-645.65595924,9.284e-05,2]
[421349674,1777487433000,-300.0,9.284e-05,2]
[421349673,1777487433000,-163.60292933,9.284e-05,2]
[421349699,1777487439000,-968.13929442,9.285e-05,2]
[421349755,1777487441000,-384.07589576,9.284e-05,2]
[421349759,1777487441000,-411.98302034,9.284e-05,2]
[421349761,1777487441000,-13774.12581304,9.285e-05,2]
[421349757,1777487441000,-500.0,9.284e-05,2]
[421350551,1777487447000,-1503.1981841,9.285e-05,2]
[421350522,1777487447000,-301.045,9.285e-05,2]
[421350520,1777487447000,-22569.63628507,9.285e-05,2]
[421350497,1777487447000,-1393.65357322,9.285e-05,2]
[421351247,1777487475000,-1304.0,9.192e-05,2]
[421351250,1777487790000,7899.01,0.0002191,120]
[421351417,1777488635000,-549.28972939,6.964e-05,10]
[421351431,1777488635000,-19.29269066,7.857e-05,2]
[421351425,1777488635000,-5000.0,7.034e-05,10]
[421351427,1777488635000,-195.13515757,7.141e-05,2]
[421351429,1777488635000,-1200.0,7.856e-05,2]
[421351423,1777488635000,-1770.71027069,6.964e-05,10]
[421351624,1777488639000,-286.10730507,9.084e-05,2]
[421351618,1777488639000,-200.0,8.689e-05,2]
[421351622,1777488639000,-451.95917147,9.084e-05,2]
[421351620,1777488639000,-200.0,8.689e-05,7]
[421351626,1777488639000,-300.0,9.084e-05,2]
[421351635,1777488639000,-26777.68689633,9.085e-05,2]
[421351628,1777488639000,-2095.20662017,9.085e-05,2]
[421351616,1777488639000,-570.54582467,7.857e-05,2]
[421351645,1777488639000,-43987.30272997,9.085e-05,2]
[421351637,1777488639000,-2420.92444355,9.085e-05,2]
[421351643,1777488639000,-1019.80907457,9.085e-05,2]
[421351630,1777488639000,-12855.11772507,9.085e-05,2]
[421351904,1777488641000,-6630.10081707,9.085e-05,2]
[421351891,1777488641000,-1071.84988445,9.085e-05,2]
[421352050,1777488645000,-720.0,9.085e-05,2]
[421352049,1777488645000,-1021.47584788,9.085e-05,2]
[421352255,1777488647000,-338338.63556202,9.085e-05,2]
[421352248,1777488647000,-774.79113638,9.085e-05,2]
[421356149,1777489831000,-542.0,8.684e-05,2]
[421356150,1777489831000,-300.0,8.684e-05,2]
[421356151,1777489831000,-197.77245441,8.684e-05,2]
[421356153,1777489831000,-948.0,8.685e-05,2]
[421356154,1777489831000,-4222.94207089,8.685e-05,2]
[421356152,1777489831000,-21578.52754559,8.685e-05,2]
[421356155,1777489831000,-33426.58488207,8.685e-05,2]
[421356190,1777489839000,-10524.86003538,8.685e-05,2]
[421356175,1777489839000,-365.20237868,8.685e-05,2]
[421356202,1777489840000,-2433.1418704,8.685e-05,2]
[421356204,1777489840000,-8062.67349115,8.685e-05,2]
[421356205,1777489840000,-5547.56886145,8.685e-05,2]
[421356203,1777489840000,-646.26507885,8.685e-05,2]
[421356235,1777489846000,-28057.86598955,8.685e-05,2]
[421356237,1777489846000,-6874.82666236,8.685e-05,2]
[421356238,1777489846000,-3306.23800897,8.685e-05,2]
[421356239,1777489846000,-20936.97707419,8.685e-05,2]
[421356236,1777489846000,-310.15474238,8.685e-05,2]
[421356335,1777491032000,-237.11,8.389e-05,2]
[421356356,1777491032000,-500.0,8.58e-05,2]
[421356354,1777491032000,-216.10513454,8.58e-05,2]
[421356349,1777491032000,-1200.0,8.579e-05,2]
[421356348,1777491032000,-300.0,8.579e-05,2]
[421356337,1777491032000,-173.81,8.421e-05,2]
[421356329,1777491032000,-177.83,8.326e-05,2]
[421356346,1777491032000,-414.95,8.578e-05,2]
[421356344,1777491032000,-231.75,8.531e-05,2]
[421356331,1777491032000,-537.0,8.326e-05,2]
[421356342,1777491032000,-355.67,8.515e-05,2]
[421356339,1777491032000,-296.39,8.452e-05,2]
[421356362,1777491032000,-152.0,8.924e-05,7]
[421356333,1777491032000,-208.39245441,8.334e-05,2]
[421356358,1777491032000,-11613.39226195,8.58e-05,2]
[421356352,1777491032000,-500.0,8.58e-05,2]
[421356360,1777491032000,-379.368,8.582e-05,2]
[421356364,1777491032000,-152.0,8.924e-05,7]
[421356388,1777491032000,-500.0,8.969e-05,2]
[421356386,1777491032000,-500.0,8.969e-05,2]
[421356394,1777491032000,-462.7321491,8.969e-05,2]
[421356392,1777491032000,-500.0,8.969e-05,2]
[421356390,1777491032000,-500.0,8.969e-05,2]
[421356382,1777491032000,-500.0,8.969e-05,2]
[421356384,1777491032000,-500.0,8.969e-05,2]
[421356376,1777491032000,-152.0,8.946e-05,7]
[421356380,1777491032000,-500.0,8.969e-05,2]
[421356374,1777491032000,-152.0,8.946e-05,7]
[421356372,1777491032000,-152.0,8.946e-05,7]
[421356370,1777491032000,-152.0,8.937e-05,7]
[421356368,1777491032000,-152.0,8.937e-05,7]
[421356378,1777491032000,-152.0,8.946e-05,7]
[421356366,1777491032000,-152.0,8.937e-05,7]
[421356553,1777491038000,-500.0,8.969e-05,2]
[421356554,1777491038000,-500.0,8.969e-05,2]
[421356558,1777491038000,-411.57247157,8.969e-05,2]
[421356568,1777491038000,-197.1809845,8.969e-05,2]
[421356559,1777491038000,-500.0,8.969e-05,2]
[421356560,1777491038000,-500.0,8.969e-05,2]
[421356565,1777491038000,-500.0,8.969e-05,2]
[421356569,1777491038000,-500.0,8.969e-05,2]
[421356552,1777491038000,-500.0,8.969e-05,2]
[421356557,1777491038000,-500.0,8.969e-05,2]
[421356548,1777491038000,-500.0,8.969e-05,2]
[421356551,1777491038000,-500.0,8.969e-05,2]
[421356550,1777491038000,-500.0,8.969e-05,2]
[421356555,1777491038000,-500.0,8.969e-05,2]
[421356547,1777491038000,-500.0,8.969e-05,2]
[421356545,1777491038000,-500.0,8.969e-05,2]
[421356549,1777491038000,-500.0,8.969e-05,2]
[421356556,1777491038000,-500.0,8.969e-05,2]
[421356544,1777491038000,-500.0,8.969e-05,2]
[421356542,1777491038000,-37.2678509,8.969e-05,2]
[421356543,1777491038000,-500.0,8.969e-05,2]
[421356561,1777491038000,-500.0,8.969e-05,2]
[421356546,1777491038000,-500.0,8.969e-05,2]
[421356564,1777491038000,-500.0,8.969e-05,2]
[421356566,1777491038000,-500.0,8.969e-05,2]
[421356583,1777491038000,-6209.57288471,9.111e-05,2]
[421356589,1777491038000,-5000.0,9.111e-05,2]
[421356562,1777491038000,-500.0,8.969e-05,2]
[421356588,1777491038000,-5000.0,9.111e-05,2]
[421356587,1777491038000,-9962.24311439,9.111e-05,2]
[421356590,1777491038000,-151.0,9.112e-05,2]
[421356585,1777491038000,-5000.0,9.111e-05,2]
[421356591,1777491038000,-151.0,9.112e-05,2]
[421356586,1777491038000,-5000.0,9.111e-05,2]
[421356584,1777491038000,-5000.0,9.111e-05,2]
[421356582,1777491038000,-152.0,8.972e-05,7]
[421356579,1777491038000,-152.0,8.972e-05,7]
[421356575,1777491038000,-168.6021704,8.97e-05,2]
[421356578,1777491038000,-152.0,8.972e-05,7]